bitfinex-derivatives/quotes_ETHF0:USTF0_20250604
["timestamp","ask_amount","ask_price","bid_price","bid_amount"]
[1749065684781,43.33336738,2628.2,2628.1,22.75064]
[1749065685888,42.05276738,2628.2,2628.1,22.75064]
[1749065686389,42.81337738,2628.2,2628.1,22.75064]
[1749065686893,41.91621,2628.2,2628.1,22.75064]
[1749065687095,44.05579001,2628.2,2628.1,22.75064]
[1749065688097,44.05579001,2628.2,2628.1,4.527]
[1749065688288,44.05579001,2628.2,2628.1,21.989]
[1749065688484,44.05579001,2628.2,2628.0,3.2078]
[1749065688685,0.76075,2627.9,2627.8,0.76071]
[1749065688891,1.65783001,2627.9,2627.8,22.74971]
[1749065689694,0.89708001,2627.9,2627.8,22.74971]
[1749065690796,1.65778001,2627.9,2627.8,22.74971]
[1749065690996,0.89708001,2627.9,2627.8,22.74971]
[1749065691194,1.65778001,2627.9,2627.8,22.74971]
[1749065691491,0.76076,2627.7,2627.6,23.77779]
[1749065691688,1.65784001,2627.7,2627.6,4.527]
[1749065692094,1.65784001,2627.7,2627.4,0.00571548]
[1749065692095,0.76082,2627.5,2627.4,0.00571548]
[1749065692293,45.66570001,2627.5,2627.4,17.46771548]
[1749065692488,0.76087,2627.3,2627.2,4.527]
[1749065692796,0.76087,2627.3,2627.2,21.989]
[1749065692994,1.65795001,2627.3,2627.2,21.989]
[1749065693199,3.61575001,2627.3,2627.2,21.989]
[1749065694292,3.61575001,2627.3,2627.2,21.988]
[1749065695794,3.61575001,2627.3,2627.2,21.6073]
[1749065697403,1.90228,2627.2,2626.8,26.8345]
[1749065697598,1.90228,2627.2,2626.9,21.991]
[1749065697599,0.76096,2627.0,2626.9,21.991]
[1749065697899,0.76102,2626.8,2626.7,4.528]
[1749065698104,0.76105,2626.7,2626.6,1.4799]
[1749065698399,0.7611,2626.5,2626.4,4.528]
[1749065698593,45.46123001,2626.7,2626.3,0.76116]
[1749065698594,0.76113,2626.4,2626.3,0.76116]
[1749065698796,3.76415,2626.7,2626.4,0.7611]
[1749065698797,0.76113,2626.5,2626.4,0.7611]
[1749065698996,41.56113,2626.5,2626.4,0.7611]
[1749065699795,40.8,2626.5,2626.0,24.4992]
[1749065700005,0.76118,2626.3,2626.2,0.76117]
[1749065700198,0.76119,2626.2,2626.1,5.2892]
[1749065700401,0.76119,2626.2,2626.1,4.528]
[1749065700598,0.76119,2626.2,2626.0,24.4992]
[1749065700599,8.2078,2626.2,2625.2,23.022]
[1749065700800,0.76145,2625.3,2625.2,4.528]
[1749065701100,41.56145,2625.3,2625.2,21.994]
[1749065701710,41.56145,2625.3,2625.2,4.528]
[1749065702214,41.56145,2625.3,2625.2,21.994]
[1749065702413,0.7616,2624.8,2624.7,3.8662]
[1749065702620,0.7616,2624.8,2624.7,20.6738]
[1749065702818,0.76159,2624.9,2624.7,21.43541]
[1749065703020,0.7616,2624.8,2624.7,20.6738]
[1749065703314,0.76159,2624.9,2624.8,0.7616]
[1749065703513,0.7616,2624.8,2624.7,20.6738]
[1749065704116,41.5616,2624.8,2624.7,3.2078]
[1749065704322,40.8,2624.8,2624.7,21.44043]
[1749065706033,41.1526,2624.8,2624.7,21.44043]
[1749065706924,41.1526,2624.8,2624.7,3.96943]
[1749065707224,41.1526,2624.8,2624.7,21.44343]
[1749065708025,41.9142,2624.8,2624.7,21.44343]
[1749065708324,41.1526,2624.8,2624.7,21.44343]
[1749065709016,41.1526,2624.8,2624.7,0.76163]
[1749065709222,41.1526,2624.8,2624.7,18.23563]
[1749065713433,41.1526,2624.8,2624.7,21.44343]
[1749065717033,41.1526,2624.8,2624.7,22.65773]
[1749065720332,41.1526,2624.8,2624.7,5.18373]
[1749065720535,41.1526,2624.8,2624.7,25.97543]
[1749065720737,41.9142,2624.8,2624.7,8.49843]
[1749065720934,41.9142,2624.8,2624.7,7.7368]
[1749065721145,41.9142,2624.8,2624.7,22.006]
[1749065721338,41.9142,2624.8,2624.7,22.76763]
[1749065722742,41.1526,2624.8,2624.7,22.76763]
[1749065723438,41.9142,2624.8,2624.7,22.76763]
[1749065724744,41.1526,2624.8,2624.7,22.76763]
[1749065725137,42.04184869,2624.8,2624.7,22.76763]
[1749065725440,42.80344869,2624.8,2624.7,22.76763]
[1749065725639,42.80344869,2624.8,2624.7,22.76863]
[1749065726642,42.80420606,2624.8,2624.7,22.76863]
[1749065727330,42.80420606,2624.8,2624.7,23.32287161]
[1749065727534,42.80420606,2624.8,2624.7,22.76863]
[1749065727741,42.04260606,2624.8,2624.7,22.76863]
[1749065728239,42.04260606,2624.8,2624.7,23.32286357]
[1749065728441,42.04260606,2624.8,2624.7,23.32286275]
[1749065728939,42.04260606,2624.8,2624.7,22.76863]
[1749065729646,42.04260606,2624.8,2624.7,23.32587353]
[1749065729940,42.04582031,2624.8,2624.7,23.32588002]
[1749065730635,42.04582031,2624.8,2624.7,22.76863]
[1749065731048,42.0451678,2624.8,2624.7,22.76863]
[1749065731342,42.0451678,2624.8,2624.7,22.76963]
[1749065732042,42.0451678,2624.8,2624.7,24.54459463]
[1749065732434,42.0451678,2624.8,2624.7,23.98723]
[1749065732634,42.0451678,2624.8,2624.7,24.54467114]
[1749065732934,42.0451678,2624.8,2624.7,24.54467189]
[1749065733133,42.0451678,2624.8,2624.7,23.98723]
[1749065733334,42.0451678,2624.8,2624.7,24.54467017]
[1749065733743,42.0451678,2624.8,2624.7,25.10211034]
[1749065733938,42.0451678,2624.8,2624.7,24.54467017]
[1749065735253,42.8067678,2624.8,2624.7,5.84907017]
[1749065735540,42.8067678,2624.8,2624.7,23.11874382]
[1749065735541,42.80685643,2624.8,2624.7,23.11874382]
[1749065735846,42.80685643,2624.8,2624.7,18.58874382]
[1749065736044,42.80685643,2624.8,2624.7,18.58858171]
[1749065736240,42.80685643,2624.8,2624.7,18.03444017]
[1749065736433,44.06755643,2624.8,2624.7,0.55744017]
[1749065736637,0.76163,2624.7,2624.6,4.53]
[1749065736838,6.77038643,2624.7,2624.6,22.007]
[1749065738438,6.77038643,2624.7,2624.6,22.76866]
[1749065739041,6.77038643,2624.7,2624.6,22.007]
[1749065739738,3.56258643,2624.7,2624.6,22.76866]
[1749065739940,3.56215143,2624.7,2624.6,22.76866]
[1749065740845,0.89222143,2624.7,2624.6,25.97646]
[1749065742655,40.8,2624.8,2624.7,0.76163]
[1749065744841,41.1577,2624.8,2624.7,0.76163]
[1749065746248,41.1577,2624.8,2624.7,18.23763]
[1749065750142,0.02920578,2624.8,2624.7,18.23763]
[1749065750344,3.2078,2625.4,2625.3,0.76145]
[1749065750543,3.96922,2625.4,2625.3,22.76345]
[1749065750851,3.96922,2625.4,2625.3,22.002]
[1749065751050,0.76154,2625.0,2624.9,3.822]
[1749065751240,41.56154,2625.0,2624.9,26.58557]
[1749065751649,40.8,2625.0,2624.9,26.58557]
[1749065754949,40.8,2625.0,2624.9,9.11057]
[1749065755155,40.8,2625.0,2624.9,26.58457]
[1749065755851,42.45803438,2625.0,2624.9,26.58457]
[1749065756052,40.8,2625.0,2624.9,26.58457]
[1749065756554,41.69661296,2625.0,2624.9,26.58457]
[1749065756754,40.8,2625.0,2624.9,26.58457]
[1749065757048,41.69659991,2625.0,2624.9,8.49637]
[1749065757255,41.69659991,2625.0,2624.9,25.96937]
[1749065758356,42.45813991,2625.0,2624.9,25.96937]
[1749065758557,41.69659991,2625.0,2624.9,25.96937]
[1749065759557,42.45813991,2625.0,2624.9,8.49637]
[1749065759748,42.45813991,2625.0,2624.9,25.96937]
[1749065760360,42.45813991,2625.0,2624.9,25.2078]
[1749065760564,41.69659991,2625.0,2624.9,25.96937]
[1749065760762,42.45813991,2625.0,2624.9,7.7348]
[1749065760951,0.76157,2624.9,2624.8,0.76159]
[1749065761158,2.30756991,2624.9,2624.8,22.76159]
[1749065761556,1.54599991,2624.9,2624.8,22.76159]
[1749065761859,2.30756991,2624.9,2624.8,22.76159]
[1749065762262,1.54633577,2624.9,2624.8,22.76159]
[1749065764155,0.89693577,2624.9,2624.8,22.76159]
[1749065764766,0.89693577,2624.9,2624.8,25.96939]
[1749065765566,40.8,2625.0,2624.9,0.76157]
[1749065765861,41.69683165,2625.0,2624.9,2.08307]
[1749065766459,40.8,2625.0,2624.9,2.08307]
[1749065766652,41.69702104,2625.0,2624.9,2.08307]
[1749065767059,40.8,2625.0,2624.9,2.08307]
[1749065767460,41.69736424,2625.0,2624.9,2.08307]
[1749065767958,40.8,2625.0,2624.9,2.08307]
[1749065768456,40.8,2625.0,2624.9,0.76157]
[1749065768856,41.56154,2625.0,2624.9,5.28857]
[1749065769154,42.45984574,2625.0,2624.9,22.75957]
[1749065769360,41.69830574,2625.0,2624.9,22.75957]
[1749065771064,41.69917207,2625.0,2624.9,22.75957]
[1749065772357,41.69917207,2625.0,2624.9,24.06847]
[1749065775064,0.76711548,2625.5,2625.4,0.76142]
[1749065775357,1.66567588,2625.5,2625.4,21.994]
[1749065775558,0.76142,2625.4,2625.3,4.524]
[1749065775764,0.76154,2625.0,2624.9,0.76156]
[1749065775959,42.4601004,2625.0,2624.9,22.75556]
[1749065776159,41.6985604,2625.0,2624.9,22.75556]
[1749065776561,42.9056604,2625.0,2624.9,22.75556]
[1749065776764,41.6985604,2625.0,2624.9,5.28556]
[1749065776965,41.6985604,2625.0,2624.9,22.75556]
[1749065779574,41.6985604,2625.0,2624.9,22.75456]
[1749065780071,41.69825307,2625.0,2624.9,22.75456]
[1749065782072,9.724,2626.2,2625.4,0.76142]
[1749065782271,3.2078,2626.0,2625.7,0.76131]
[1749065782463,3.2078,2626.0,2625.9,0.76128]
[1749065782663,3.2078,2626.0,2625.9,18.23028]
[1749065782868,1.2484,2626.1,2626.0,0.76125]
[1749065783063,42.0484,2626.1,2626.0,0.76125]
[1749065783364,42.0484,2626.1,2625.9,21.43807]
[1749065783572,42.0484,2626.1,2626.0,0.76125]
[1749065783573,42.80964,2626.1,2626.0,0.76125]
[1749065784272,42.0484,2626.1,2626.0,0.76125]
[1749065784474,42.80962,2626.1,2626.0,0.76125]
[1749065784870,42.0484,2626.1,2626.0,0.76125]
[1749065786280,42.80962,2626.1,2626.0,0.76125]
[1749065787977,42.0484,2626.1,2626.0,0.76125]
[1749065788168,40.8,2626.1,2626.0,0.76125]
[1749065788364,40.8,2626.1,2626.0,1.39075]
[1749065788771,40.8,2626.1,2626.0,2.60685]
[1749065788972,0.00571548,2626.3,2626.2,0.76119]
[1749065789168,3.96881,2626.9,2626.2,25.95799]
[1749065789368,0.76087,2627.4,2627.2,0.76089]
[1749065789575,0.76087,2627.4,2627.3,21.989]
[1749065789780,0.76087,2627.3,2627.1,0.76091]
[1749065789983,0.76087,2627.3,2627.2,21.989]
[1749065790376,41.56087,2627.3,2627.2,21.989]
[1749065790679,41.56087,2627.3,2627.2,4.523]
[1749065790880,41.56087,2627.3,2627.2,21.986]
[1749065793283,0.76093,2627.1,2627.0,0.76094]
[1749065793580,0.76093,2627.1,2627.0,21.985]
[1749065794175,1.6606064,2627.1,2627.0,21.985]
[1749065794769,1.6606064,2627.1,2627.0,22.74596]
[1749065795275,0.76093,2627.1,2627.0,22.74596]
[1749065795876,0.76093,2627.1,2627.0,21.985]
[1749065796476,0.76093,2627.1,2627.0,22.74596]
[1749065797184,0.76093,2627.1,2627.0,21.985]
[1749065798186,0.76093,2627.1,2627.0,4.523]
[1749065798483,0.76093,2627.1,2627.0,21.982]
[1749065798982,0.76093,2627.1,2627.0,22.74296]
[1749065803082,0.76093,2627.1,2627.0,5.28396]
[1749065803273,0.76093,2627.1,2627.0,22.74096]
[1749065803477,0.76092,2627.2,2627.1,0.7609]
[1749065805780,44.76869,2627.3,2627.2,0.7609]
[1749065805981,44.0078,2627.3,2627.2,0.7609]
[1749065806181,44.76867,2627.3,2627.2,0.7609]
[1749065806683,44.0078,2627.3,2627.2,17.456]
[1749065806887,0.76099,2626.9,2626.8,3.2078]
[1749065807077,0.76099,2626.9,2626.8,25.94482]
[1749065807987,1.42058,2627.0,2626.9,0.76099]
[1749065808682,0.6596,2627.0,2626.9,0.76099]
[1749065809389,45.91,2627.3,2626.8,25.1838]
[1749065809390,44.0078,2627.3,2626.8,27.08632]
[1749065809579,44.0078,2627.3,2627.2,0.7609]
[1749065809785,44.0078,2627.3,2627.2,22.7359]
[1749065809991,40.8,2627.3,2627.2,22.7359]
[1749065810485,40.8,2627.3,2627.2,23.9921]
[1749065812280,41.70465895,2627.3,2627.2,23.9921]
[1749065812477,40.8,2627.3,2627.2,23.9921]
[1749065812882,41.56087,2627.3,2627.2,23.9921]
[1749065813190,41.70590887,2627.3,2627.2,23.9921]
[1749065813683,40.8,2627.3,2627.2,23.9921]
[1749065813884,41.70607385,2627.3,2627.2,23.9921]
[1749065814688,41.70607385,2627.3,2627.2,21.972]
[1749065815087,41.70607385,2627.3,2627.2,22.7329]
[1749065815287,40.8,2627.3,2627.2,23.9727]
[1749065815692,40.8,2627.3,2627.2,28.9727]
[1749065815891,0.00571548,2627.5,2627.4,0.76084]
[1749065816086,0.00571548,2627.5,2627.4,3.96864]
[1749065816290,40.80571548,2627.5,2627.4,8.96864]
[1749065816485,40.80571548,2627.5,2627.4,10.81124]
[1749065817400,40.80571548,2627.5,2627.4,5.81124]
[1749065820493,40.80571548,2627.5,2627.4,10.32924]
[1749065820795,40.80571548,2627.5,2627.4,26.54044]
[1749065821396,41.56652548,2627.5,2627.4,3.2078]
[1749065821595,47.5880001,2627.5,2627.4,21.968]
[1749065822202,44.3802001,2627.5,2627.4,21.968]
[1749065823799,44.3802001,2627.5,2627.4,22.72884]
[1749065824302,44.38062131,2627.5,2627.4,22.72884]
[1749065825992,41.71281131,2627.5,2627.4,22.72884]
[1749065826196,40.80571548,2627.5,2627.4,25.93664]
[1749065826390,0.00571548,2627.5,2627.4,27.21974]
[1749065826592,0.6008,2628.3,2627.5,1.90204]
[1749065826802,0.90670501,2628.2,2628.1,0.76064]
[1749065827005,41.70670501,2628.2,2628.1,22.72964]
[1749065827400,42.46731501,2628.2,2628.1,22.72964]
[1749065827598,41.70670501,2628.2,2628.1,22.72964]
[1749065827806,42.46731501,2628.2,2628.1,22.72964]
[1749065828504,41.56061,2628.2,2628.1,22.72964]
[1749065828805,42.46704267,2628.2,2628.1,21.969]
[1749065829005,43.73464267,2628.2,2628.1,21.969]
[1749065830000,42.97403267,2628.2,2627.9,3.96848]
[1749065830200,0.76067,2628.0,2627.9,7.7258]
[1749065830401,0.90643267,2628.0,2627.9,25.9355]
[1749065830897,0.00571548,2628.4,2628.3,0.76058]
[1749065831095,0.00571548,2628.4,2628.3,22.72758]
[1749065831304,41.71199705,2628.4,2628.3,22.72758]
[1749065832510,41.71199705,2628.4,2628.3,23.99078]
[1749065832908,40.80571548,2628.4,2628.3,24.29837076]
[1749065833610,40.8,2628.4,2628.3,52.31437076]
[1749065833809,0.76038,2629.0,2628.9,0.76039]
[1749065834008,0.90664311,2629.0,2628.9,22.72439]
[1749065834507,1.66702311,2629.0,2628.9,22.72439]
[1749065834718,42.46702311,2629.0,2628.9,21.964]
[1749065834916,0.76044,2628.8,2628.7,0.00571548]
[1749065835108,0.76044,2628.8,2628.7,17.45871548]
[1749065835109,1.66708311,2628.8,2628.7,17.45871548]
[1749065835912,2.95848311,2628.8,2628.7,17.45871548]
[1749065836212,2.95848311,2628.8,2628.7,18.21918548]
[1749065836413,0.90664311,2628.8,2628.7,18.21918548]
[1749065836810,0.00571548,2629.2,2629.1,0.76035]
[1749065837017,0.00571548,2629.2,2629.1,22.75435]
[1749065837416,0.00571548,2629.2,2629.1,22.002]
[1749065837617,0.00571548,2629.2,2629.1,22.76235]
[1749065838213,40.80571548,2629.2,2629.1,22.76235]
[1749065839424,40.80571548,2629.2,2629.1,0.76035]
[1749065839613,40.80571548,2629.2,2629.1,21.992]
[1749065839811,41.41131548,2629.2,2629.0,3.96816]
[1749065840012,1.2745,2629.1,2629.0,3.96816]
[1749065840310,1.2745,2629.1,2629.0,25.95816]
[1749065840519,1.9282,2629.1,2629.0,25.95816]
[1749065840913,0.6537,2629.1,2629.0,25.95816]
[1749065841613,1.41405,2629.1,2629.0,25.95818]
[1749065842015,0.6537,2629.1,2629.0,25.95818]
[1749065842311,1.41405,2629.1,2629.0,7.7228]
[1749065842519,1.41405,2629.1,2629.0,22.74638]
[1749065842720,0.6537,2629.1,2629.0,22.74638]
[1749065843209,0.6537,2629.1,2628.7,3.21351548]
[1749065843410,0.76043,2628.9,2628.8,21.986]
[1749065843622,1.2815,2629.0,2628.9,0.76041]
[1749065843816,1.41407,2629.1,2629.0,0.76038]
[1749065844517,0.6537,2629.1,2629.0,0.76038]
[1749065844815,40.80571548,2629.2,2629.1,0.76035]
[1749065845717,40.80571548,2629.2,2629.1,2.04115]
[1749065846220,0.6115,2629.9,2629.8,0.76015]
[1749065846514,0.6115,2629.9,2629.8,22.75715]
[1749065846723,0.76011,2630.0,2629.9,0.76011]
[1749065846911,5.1078,2630.4,2629.9,1.90031]
[1749065846912,3.2078,2630.4,2629.9,1.90031]
[1749065847113,0.76003,2630.3,2629.9,1.8991]
[1749065847320,40.8,2630.2,2630.1,0.76005]
[1749065847511,40.8,2630.2,2630.1,5.27405]
[1749065847918,41.56003,2630.2,2630.1,4.514]
[1749065848115,5.10705,2631.4,2630.1,9.514]
[1749065848321,0.6392,2631.3,2630.8,3.2078]
[1749065848518,0.7598,2631.0,2630.9,17.573]
[1749065849215,41.5598,2631.0,2630.9,17.573]
[1749065849611,41.5598,2631.0,2630.9,18.33283]
[1749065849815,41.5598,2631.0,2630.9,17.573]
[1749065850615,0.75986,2630.8,2630.7,0.00570451]
[1749065851215,1.36916,2630.8,2630.7,0.00570451]
[1749065851418,42.16916,2630.8,2630.7,0.00570451]
[1749065852221,50.37696,2630.8,2630.7,4.51e-06]
[1749065852416,55.79098407,2630.8,2630.7,4.51e-06]
[1749065854618,55.79167411,2630.8,2630.7,4.51e-06]
[1749065856418,46.27867411,2630.8,2630.7,4.51e-06]
[1749065857030,47.48987411,2630.8,2630.7,4.51e-06]
[1749065857427,44.28207411,2630.8,2630.7,4.51e-06]
[1749065858031,52.48987411,2630.8,2630.7,4.51e-06]
[1749065860732,45.66937411,2630.8,2630.7,4.51e-06]
[1749065860926,47.55047411,2630.8,2630.7,4.51e-06]
[1749065861231,52.55047411,2630.8,2630.7,4.51e-06]
[1749065864025,57.13547411,2630.8,2630.7,4.51e-06]
[1749065868036,57.13902403,2630.8,2630.7,4.51e-06]
[1749065868428,52.13902403,2630.8,2630.7,4.51e-06]
[1749065870231,47.55402403,2630.8,2630.7,4.51e-06]
[1749065870444,44.34622403,2630.8,2630.7,4.51e-06]
[1749065870735,43.06802403,2630.8,2630.7,4.51e-06]
[1749065871439,42.46512403,2630.8,2630.7,4.51e-06]
[1749065872439,42.4662501,2630.8,2630.7,4.51e-06]
[1749065876838,41.55986,2630.8,2630.7,4.51e-06]
[1749065877144,42.47186865,2630.8,2630.7,4.51e-06]
[1749065878034,45.67966865,2630.8,2630.7,4.51e-06]
[1749065878531,48.71367053,2630.8,2630.7,4.51e-06]
[1749065878729,49.35547053,2630.8,2630.7,4.51e-06]
[1749065880338,51.32146865,2630.8,2630.7,4.51e-06]
[1749065880539,60.28560865,2630.8,2629.6,0.6292]
[1749065880738,0.76018,2629.7,2629.6,0.6292]
[1749065881043,1.67218865,2629.7,2629.6,0.6292]
[1749065881244,42.47218865,2629.7,2629.6,0.6292]
[1749065881444,42.47218865,2629.7,2629.6,4.59721]
[1749065881636,42.47218865,2629.7,2629.6,3.837]
[1749065882438,42.47218865,2629.7,2629.6,3.82868534]
[1749065883640,42.47218865,2629.7,2629.6,5.07678534]
[1749065885542,42.47218865,2629.7,2629.6,3.82868534]
[1749065885743,42.46755808,2629.7,2629.6,0.62088534]
[1749065886638,41.70737808,2629.7,2629.6,1.38109534]
[1749065886946,41.70737808,2629.7,2629.6,5.88559534]
[1749065887143,41.70737808,2629.7,2629.6,15.47159534]
[1749065887749,40.8,2629.7,2629.6,15.47159534]
[1749065888444,40.8,2629.7,2629.6,10.47159534]
[1749065888643,41.56018,2629.7,2629.6,10.47159534]
[1749065888841,40.8,2629.7,2629.6,10.47159534]
[1749065890138,40.8,2629.7,2629.6,15.47159534]
[1749065894649,40.8,2629.7,2629.6,32.97759534]
[1749065898653,1.4799,2629.9,2629.8,0.76015]
[1749065899050,1.4799,2629.9,2629.8,5.76015]
[1749065899459,0.75997,2630.5,2630.4,0.75998]
[1749065899646,41.55997,2630.5,2630.4,26.03578]
[1749065899851,42.46774374,2630.5,2630.4,26.03578]
[1749065901357,42.46774374,2630.5,2630.4,25.2758]
[1749065901551,42.46774374,2630.5,2630.4,20.7128]
[1749065902059,42.46774374,2630.5,2630.4,21.47278]
[1749065902259,42.46774374,2630.5,2630.4,3.96778]
[1749065902449,42.46774374,2630.5,2630.4,3.2078]
[1749065902656,43.68104374,2630.5,2630.4,3.2078]
[1749065902856,0.75998,2630.4,2630.3,0.6311]
[1749065903161,3.48185374,2630.4,2630.3,0.6311]
[1749065903852,4.05205374,2630.4,2630.3,0.6311]
[1749065904466,4.05205374,2630.4,2630.0,3.2078]
[1749065904467,0.76006,2630.1,2630.0,3.2078]
[1749065904656,1.66783374,2630.1,2630.0,20.7078]
[1749065905556,42.46783374,2630.1,2630.0,20.7078]
[1749065907555,42.46783374,2630.1,2630.0,21.46789]
[1749065908461,42.46783374,2630.1,2630.0,20.7078]
[1749065908661,42.46783374,2630.1,2630.0,3.2078]
[1749065908864,42.46783374,2630.1,2630.0,20.6958]
[1749065909770,0.76012,2629.9,2629.8,4.554]
[1749065909966,1.66789374,2629.9,2629.8,22.042]
[1749065910464,44.35428614,2629.9,2629.8,22.042]
[1749065911569,0.76015,2629.8,2629.7,3.2078]
[1749065911866,0.76015,2629.8,2629.7,20.6958]
[1749065911867,2.93901614,2629.8,2629.7,20.6958]
[1749065912166,43.73901614,2629.8,2629.7,20.7028]
[1749065913457,43.73901614,2629.8,2629.7,21.46298]
[1749065914164,42.46781614,2629.8,2629.7,21.46298]
[1749065914365,41.70766614,2629.8,2629.7,21.46298]
[1749065914762,42.46781614,2629.8,2629.7,21.46298]
[1749065917264,42.46785959,2629.8,2629.7,21.46298]
[1749065919969,42.46785959,2629.8,2629.7,20.7028]
[1749065921162,42.46785959,2629.8,2629.7,20.6788]
[1749065921366,42.46785959,2629.8,2629.7,20.6778]
[1749065921559,43.70735959,2629.8,2629.7,20.6778]
[1749065921755,42.79965,2629.8,2629.7,21.43798]
[1749065922063,43.70781322,2629.8,2629.7,21.43798]
[1749065923670,42.46831322,2629.8,2629.7,21.43798]
[1749065924364,43.03861322,2629.8,2629.7,21.43798]
[1749065925063,42.27846322,2629.8,2629.7,21.43798]
[1749065925265,43.03861322,2629.8,2629.7,21.43798]
[1749065926473,43.03838849,2629.8,2629.7,21.43798]
[1749065926863,43.03838849,2629.8,2629.7,20.6628]
[1749065927466,0.76024,2629.5,2629.4,0.00570451]
[1749065927972,1.66817849,2629.5,2629.4,0.00570451]
[1749065928173,45.03727849,2629.5,2629.4,0.00570451]
[1749065934771,0.76032,2629.2,2629.1,20.6558]
[1749065934972,1.66722262,2629.2,2629.1,20.6558]
[1749065935172,1.66722262,2629.2,2629.1,3.2078]
[1749065935375,1.66720097,2629.2,2629.1,3.2078]
[1749065936381,42.46720097,2629.2,2629.1,3.2078]
[1749065939781,41.56032,2629.2,2629.1,3.2078]
[1749065939980,42.46676468,2629.2,2629.1,3.2078]
[1749065940280,0.76038,2629.0,2628.9,0.00570451]
[1749065940474,0.76038,2629.0,2628.3,5.10926]
[1749065940475,1.90108,2628.9,2628.0,7.7388]
[1749065940677,0.76063,2628.3,2628.2,0.76059]
[1749065940876,1.66651769,2628.3,2628.2,18.20959]
[1749065941076,42.46651769,2628.3,2628.2,18.20959]
[1749065941478,42.46651769,2628.3,2628.2,0.76059]
[1749065941674,42.46603625,2628.3,2628.2,18.20959]
[1749065943282,42.46603625,2628.3,2628.0,8.39170451]
[1749065943283,0.76064,2628.1,2628.0,8.39170451]
[1749065943484,1.66604625,2628.1,2628.0,26.60137451]
[1749065943880,1.66604625,2628.1,2628.0,26.60337451]
[1749065944392,1.66501169,2628.1,2628.0,26.60337451]
[1749065946881,0.76064,2628.1,2628.0,27.87647451]
[1749065947085,0.76064,2628.1,2628.0,24.66967451]
[1749065949686,0.76064,2628.2,2628.1,0.76061]
[1749065949986,1.66270929,2628.2,2628.1,0.76061]
[1749065950182,0.90206929,2628.2,2628.1,0.76061]
[1749065950490,40.80570451,2628.3,2628.2,0.76061]
[1749065950784,40.80570451,2628.3,2628.2,2.68681]
[1749065951185,40.80570451,2628.3,2628.2,7.68681]
[1749065952392,40.80570451,2628.3,2628.2,2.68681]
[1749065953188,0.00570451,2628.3,2628.2,2.68681]
[1749065953394,3.2078,2629.1,2628.9,0.76039]
[1749065953694,42.46260441,2629.0,2628.9,0.76039]
[1749065953891,42.46260441,2629.0,2628.9,18.21939]
[1749065954093,42.46260441,2629.0,2628.9,17.459]
[1749065954395,42.46260441,2629.0,2628.6,0.76045]
[1749065954396,0.76049,2628.7,2628.6,0.76045]
[1749065954689,0.76046,2628.8,2628.7,0.76043]
[1749065955197,0.76043,2628.9,2628.8,0.76044]
[1749065955386,1.66320288,2628.9,2628.8,0.76044]
[1749065957592,0.90277288,2628.9,2628.6,4.525]
[1749065957788,0.76058,2628.3,2628.2,5.914]
[1749065957994,0.76064,2628.1,2627.8,8.49251]
[1749065958191,0.76064,2628.1,2628.0,17.47570451]
[1749065958495,41.56064,2628.1,2628.0,0.00570451]
[1749065958696,41.70746831,2628.1,2628.0,19.56477451]
[1749065959093,40.8,2628.1,2628.0,19.56477451]
[1749065962302,41.56064,2628.1,2628.0,19.56477451]
[1749065962600,42.4675471,2628.1,2628.0,18.23537451]
[1749065962787,41.7069071,2628.1,2628.0,18.23537451]
[1749065964097,41.7069071,2628.1,2628.0,19.46577451]
[1749065969509,40.8,2628.1,2628.0,19.46577451]
[1749065969706,41.70826047,2628.1,2628.0,19.46577451]
[1749065969901,41.70826047,2628.1,2628.0,18.22137451]
[1749065970104,42.46890047,2628.1,2628.0,18.22137451]
[1749065970300,41.70826047,2628.1,2628.0,18.22137451]
[1749065970605,41.70824969,2628.1,2628.0,18.22137451]
[1749065971207,41.70829395,2628.1,2628.0,18.22137451]
[1749065974210,0.6442,2628.6,2628.5,0.76053]
[1749065974512,0.6442,2628.6,2628.5,18.21553]
[1749065974714,40.8,2628.6,2628.5,18.21553]
[1749065975413,40.8,2628.6,2628.5,0.76053]
[1749065975613,41.5605,2628.6,2628.5,0.76053]
[1749065975804,0.76053,2628.5,2628.4,5.28553]
[1749065976007,3.26653,2628.5,2628.4,22.76153]
[1749065976212,1.1787,2628.5,2628.4,22.76153]
[1749065978514,0.5706,2628.5,2628.4,22.76153]
[1749065978708,0.5706,2628.5,2628.4,25.96933]
[1749065979327,0.5706,2628.5,2628.4,25.97233]
[1749065982223,0.00570451,2629.2,2629.1,0.76035]
[1749065982532,0.00570451,2629.2,2629.1,18.23935]
[1749065983025,0.76602451,2629.2,2629.1,18.23935]
[1749065983332,41.56602451,2629.2,2629.1,18.23935]
[1749065983525,42.82932451,2629.2,2629.1,18.23935]
[1749065984322,0.76035,2629.1,2629.0,5.29537]
[1749065984523,0.76035,2629.1,2629.0,22.77237]
[1749065984724,2.02365,2629.1,2629.0,22.77237]
[1749065984930,42.82365,2629.1,2629.0,22.77237]
[1749065986430,0.76047,2628.8,2628.7,0.76045]
[1749065986618,1.68921626,2628.8,2628.7,22.76745]
[1749065987020,0.92874626,2628.8,2628.7,22.76745]
[1749065987226,41.72874626,2628.8,2628.7,22.76745]
[1749065987432,42.35884626,2628.8,2628.7,22.76745]
[1749065987827,43.11928626,2628.8,2628.7,22.76745]
[1749065988131,42.35884626,2628.8,2628.7,22.76745]
[1749065988532,42.35884626,2628.8,2628.7,5.29545]
[1749065988721,43.01954626,2628.8,2628.7,22.76445]
[1749065988924,42.0908,2628.8,2628.7,22.76445]
[1749065989122,43.01993375,2628.8,2628.7,22.76445]
[1749065989728,43.78037375,2628.8,2628.7,22.76445]
[1749065990629,43.78037375,2628.8,2628.7,4.535]
[1749065990831,0.7605,2628.6,2628.5,3.2078]
[1749065991033,1.68963375,2628.6,2628.5,20.6708]
[1749065991229,1.68963375,2628.6,2628.5,3.2078]
[1749065991423,1.68963375,2628.6,2628.5,21.43233]